bitfinex/quotes_BTCUSD_20240902
["timestamp","ask_amount","ask_price","bid_price","bid_amount"]
[1725311090482,0.000816,59375.0,59372.0,0.134743]
[1725311090674,0.000816,59375.0,59370.0,0.02212004]
[1725311090844,0.02642539,59374.0,59373.0,0.02209576]
[1725311091053,0.02642539,59374.0,59367.0,0.008]
[1725311091054,0.39050103,59374.0,59367.0,0.008]
[1725311091252,0.404259,59368.0,59361.0,0.002]
[1725311091538,0.134754,59368.0,59361.0,0.002]
[1725311091779,0.134744,59372.0,59362.0,0.134765]
[1725311091990,0.02642539,59374.0,59361.0,0.002]
[1725311091991,0.1,59371.0,59361.0,0.002]
[1725311092217,0.02642666,59367.0,59364.0,0.002]
[1725311092431,0.134748,59370.0,59364.0,0.002]
[1725311092647,0.1,59371.0,59364.0,0.002]
[1725311092860,0.02642661,59367.0,59366.0,0.134757]
[1725311093074,0.369446,59382.0,59366.0,0.01]
[1725311093330,0.134732,59377.0,59367.0,0.134754]
[1725311093792,0.134732,59377.0,59366.0,0.01]
[1725311093793,0.0264241,59373.0,59368.0,0.134752]
[1725311094458,0.0264241,59373.0,59366.0,0.144755]
[1725311094671,0.0264241,59373.0,59366.0,0.01]
[1725311094843,0.0264241,59373.0,59368.0,0.134752]
[1725311095070,0.0264241,59373.0,59368.0,0.141752]
[1725311095304,0.0264241,59373.0,59368.0,0.007]
[1725311095485,0.0264241,59373.0,59366.0,0.144755]
[1725311095696,0.0264241,59373.0,59367.0,0.134754]
[1725311096119,0.269491,59371.0,59366.0,0.006]
[1725311096323,0.134751,59369.0,59366.0,0.006]
[1725311096474,0.134751,59369.0,59364.0,0.002]
[1725311096706,0.134755,59367.0,59364.0,0.002]
[1725311096928,0.134753,59368.0,59364.0,0.002]
[1725311097143,0.134755,59367.0,59361.0,0.007]
[1725311097576,0.16117796,59368.0,59361.0,0.007]
[1725311097862,0.16117796,59368.0,59364.0,0.014]
[1725311098030,0.02642596,59368.0,59364.0,0.014]
[1725311098263,0.02642596,59368.0,59367.0,0.411263]
[1725311098486,0.02642596,59368.0,59367.0,0.826672]
[1725311098700,0.134715,59385.0,59374.0,0.134739]
[1725311098928,0.02723981,59375.0,59374.0,0.02208766]
[1725311099152,0.02723981,59375.0,59374.0,0.007]
[1725311099359,0.02723981,59375.0,59374.0,0.02208766]
[1725311099827,0.02723981,59375.0,59371.0,0.141745]
[1725311100052,0.02723981,59375.0,59374.0,0.02908766]
[1725311100247,0.02723981,59375.0,59374.0,0.007]
[1725311100464,0.02723981,59375.0,59374.0,0.96825123]
[1725311100673,0.00816,59401.0,59374.0,0.96825123]
[1725311100674,0.00816,59401.0,59392.0,0.0932]
[1725311100885,0.187818,59400.0,59389.0,0.007]
[1725311101097,0.187818,59400.0,59387.0,0.02]
[1725311101098,0.187818,59400.0,59387.0,0.027]
[1725311101316,0.26938,59396.0,59388.0,0.02197437]
[1725311101532,0.134691,59395.0,59388.0,0.02197437]
[1725311101795,0.134685,59398.0,59389.0,0.007]
[1725311102002,0.134685,59398.0,59390.0,0.02195819]
[1725311102230,0.269362,59400.0,59390.0,0.15665919]
[1725311102231,0.13468,59400.0,59390.0,0.15665919]
[1725311102437,0.134683,59399.0,59390.0,0.02195819]
[1725311103101,0.269365,59399.0,59390.0,0.02195819]
[1725311103354,0.269365,59399.0,59385.0,0.1132]
[1725311103355,0.0236,59390.0,59378.0,0.0985]
[1725311103575,0.134724,59381.0,59379.0,0.50540786]
[1725311103773,0.0236,59390.0,59377.0,0.1182]
[1725311104004,0.357338,59389.0,59377.0,0.1182]
[1725311104238,0.134719,59383.0,59377.0,0.1182]
[1725311104453,0.0236,59390.0,59377.0,0.1182]
[1725311104680,0.269439,59383.0,59377.0,0.1182]
[1725311104894,0.134723,59381.0,59377.0,0.1182]
[1725311105100,0.1611397,59382.0,59377.0,0.1182]
[1725311105358,0.542776,59381.0,59367.0,0.206]
[1725311105643,0.06947597,59382.0,59379.0,0.007]
[1725311105644,0.26945,59380.0,59379.0,0.007]
[1725311105857,0.673625,59380.0,59379.0,0.007]
[1725311106065,0.269462,59378.0,59369.0,0.01]
[1725311106279,0.26945,59380.0,59367.0,0.357754]
[1725311106280,0.269464,59377.0,59367.0,0.216]
[1725311106513,0.0236,59403.0,59387.0,0.007]
[1725311106727,0.264789,59400.0,59394.0,0.007]
[1725311106935,0.134658,59410.0,59398.0,0.007]
[1725311107158,0.269318,59410.0,59398.0,0.007]
[1725311107396,0.13466,59409.0,59399.0,0.134682]
[1725311107616,0.269304,59413.0,59398.0,0.007]
[1725311107826,0.134665,59407.0,59398.0,0.007]
[1725311108031,0.134665,59407.0,59398.0,0.141684]
[1725311108264,0.269317,59410.0,59398.0,0.007]
[1725311108484,0.269304,59413.0,59398.0,0.007]
[1725311108723,0.269304,59413.0,59400.0,0.13468]
[1725311108925,0.134661,59409.0,59398.0,0.142683]
[1725311109162,0.269319,59410.0,59398.0,0.143683]
[1725311109163,0.134662,59408.0,59398.0,0.143683]
[1725311109417,0.269319,59410.0,59398.0,0.009]
[1725311109631,0.134666,59406.0,59398.0,0.008]
[1725311109842,0.134666,59406.0,59400.0,0.001]
[1725311110496,0.1,59415.0,59400.0,0.001]
[1725311110745,0.1,59415.0,59400.0,0.002]
[1725311110746,0.01116,59401.0,59400.0,0.002]
[1725311110983,0.01116,59401.0,59400.0,0.01761236]
[1725311111205,0.01116,59401.0,59400.0,0.001]
[1725311111401,0.134663,59408.0,59400.0,0.001]
[1725311111611,0.269304,59413.0,59400.0,0.001]
[1725311111612,0.708893,59407.0,59400.0,0.001]
[1725311111824,0.535913,59406.0,59400.0,0.001]
[1725311112038,0.45865,59405.0,59400.0,0.001]
[1725311112260,0.404638,59407.0,59405.0,0.134667]
[1725311112494,0.0236,59421.0,59403.0,0.007]
[1725311112495,0.182983,59414.0,59403.0,0.007]
[1725311112698,0.0236,59421.0,59406.0,0.15022984]
[1725311112699,0.1,59413.0,59406.0,0.15022984]
[1725311112949,0.1,59413.0,59407.0,0.15021876]
[1725311113433,0.03176,59433.0,59414.0,0.007]
[1725311113651,0.26922,59431.0,59417.0,0.1237]
[1725311113863,0.134615,59429.0,59417.0,0.1237]
[1725311114126,0.134619,59427.0,59413.0,0.1237]
[1725311114337,0.00816,59433.0,59422.0,0.007]
[1725311114601,0.00816,59433.0,59423.0,0.01542642]
[1725311114602,0.282072,59432.0,59423.0,0.01542642]
[1725311114782,0.246474,59432.0,59425.0,0.134622]
[1725311115049,0.00816,59433.0,59427.0,0.0924]
[1725311115284,0.00816,59433.0,59429.0,0.007]
[1725311115502,0.00816,59433.0,59428.0,0.02238602]
[1725311115731,0.00816,59433.0,59427.0,0.0924]
[1725311115732,0.00816,59433.0,59429.0,0.01537794]
[1725311115955,0.00816,59433.0,59428.0,0.007]
[1725311116170,0.00816,59433.0,59427.0,0.0924]
[1725311116171,0.00816,59433.0,59429.0,0.01537794]
[1725311116400,0.00816,59433.0,59427.0,0.0924]
[1725311116645,0.00816,59433.0,59432.0,0.618822]
[1725311116864,0.00816,59433.0,59432.0,0.888037]
[1725311117070,0.00816,59433.0,59432.0,0.90339071]
[1725311117294,0.00816,59433.0,59432.0,0.25035371]
[1725311117741,0.00816,59433.0,59432.0,0.38496071]
[1725311118198,0.00816,59433.0,59432.0,0.15835371]
[1725311118606,0.00816,59433.0,59432.0,0.13835371]
[1725311118837,0.00816,59433.0,59432.0,0.15835371]
[1725311119347,0.274515,59433.0,59432.0,0.01279475]
[1725311119546,0.134626,59424.0,59422.0,0.116]
[1725311119756,0.134626,59424.0,59423.0,0.01073501]
[1725311119757,0.134625,59424.0,59423.0,0.01073501]
[1725311119965,0.795623,59423.0,59409.0,0.208]
[1725311120171,0.9021104,59423.0,59410.0,0.00905092]
[1725311120422,0.14189451,59432.0,59412.0,0.007]
[1725311120423,0.13464,59418.0,59412.0,0.007]
[1725311120652,0.134657,59417.0,59409.0,0.116]
[1725311120852,1.9716022,59429.0,59413.0,0.00902667]
[1725311121281,0.269296,59414.0,59409.0,0.116]
[1725311121512,0.134651,59413.0,59409.0,0.116]
[1725311121721,0.134651,59413.0,59410.0,0.00905092]
[1725311121958,0.134653,59412.0,59410.0,0.00905092]
[1725311122198,0.403965,59411.0,59410.0,0.00905092]
[1725311122423,0.134657,59410.0,59406.0,0.123]
[1725311122651,0.134655,59411.0,59409.0,0.006]
[1725311122915,0.0971,59418.0,59409.0,0.006]
[1725311122916,0.134657,59410.0,59409.0,0.006]
[1725311123144,0.0971,59418.0,59406.0,0.123]
[1725311123359,0.403945,59414.0,59413.0,0.001]
[1725311123596,0.134655,59411.0,59410.0,0.009]
[1725311123836,0.403965,59411.0,59410.0,0.009]
[1725311124305,0.134672,59404.0,59401.0,0.007]
[1725311124538,0.445789,59411.0,59399.0,0.119]
[1725311124539,0.02640836,59411.0,59399.0,0.119]
[1725311124789,0.269337,59406.0,59398.0,0.007]
[1725311125039,0.134698,59392.0,59390.0,0.007]
[1725311125251,1.221604,59405.0,59390.0,0.007]
[1725311125252,0.134695,59394.0,59390.0,0.007]
[1725311125493,0.1347,59391.0,59390.0,0.007]
[1725311125708,0.02641427,59394.0,59391.0,0.01]
[1725311125926,0.02641427,59394.0,59388.0,0.092]
[1725311125927,0.134705,59389.0,59388.0,0.092]
[1725311126149,0.134707,59388.0,59382.0,0.1378]
[1725311126365,0.134716,59384.0,59382.0,0.1378]
[1725311126616,0.02641427,59394.0,59382.0,0.1378]
[1725311126617,0.134718,59383.0,59382.0,0.1378]
[1725311126839,0.404155,59383.0,59382.0,0.1308]
[1725311127085,0.13472,59382.0,59381.0,0.007]
[1725311127558,0.404161,59382.0,59381.0,0.00928549]
[1725311127822,0.404161,59382.0,59375.0,0.1457965]
[1725311127823,0.134734,59376.0,59375.0,0.0008965]
[1725311128050,0.673672,59376.0,59375.0,0.0008965]
[1725311128273,1.604073,59376.0,59375.0,0.0008965]
[1725311128491,1.79090423,59376.0,59375.0,0.0008965]
[1725311128782,0.002,59370.0,59350.0,0.1572]
[1725311129044,0.002,59370.0,59348.0,0.02]
[1725311129045,0.134795,59349.0,59348.0,0.01]
[1725311129295,0.134797,59349.0,59346.0,0.015965]
[1725311129539,0.002,59362.0,59346.0,0.008965]
[1725311129785,0.4044,59347.0,59346.0,0.008965]
[1725311130041,1.285247,59347.0,59346.0,0.008965]
[1725311130267,0.1916,59347.0,59346.0,0.008965]
[1725311130489,0.0264355,59349.0,59346.0,0.008965]
[1725311131196,0.4044,59347.0,59346.0,0.008965]
[1725311131412,1.343538,59347.0,59346.0,0.008965]
[1725311131645,1.537727,59347.0,59346.0,0.008965]
[1725311131864,0.315492,59347.0,59346.0,0.008965]
[1725311132313,0.585092,59347.0,59346.0,0.008965]
[1725311132577,0.91584475,59347.0,59346.0,0.008965]
[1725311132792,0.585092,59347.0,59346.0,0.008965]
[1725311133038,0.583092,59347.0,59346.0,0.008965]
[1725311133485,0.269569,59354.0,59346.0,0.013965]
[1725311133486,0.20675741,59354.0,59346.0,0.013965]
[1725311133732,0.134795,59350.0,59346.0,0.008965]
[1725311133974,0.317029,59349.0,59346.0,0.013965]
[1725311134261,0.21283,59348.0,59346.0,0.013965]
[1725311134527,0.1,59353.0,59346.0,0.013965]
[1725311134762,0.235676,59352.0,59346.0,0.013965]
[1725311134980,0.134797,59349.0,59346.0,0.008965]
[1725311135219,0.722775,59348.0,59346.0,0.011965]
[1725311135447,0.534997,59349.0,59346.0,0.011965]
[1725311135682,0.121419,59348.0,59346.0,0.011965]
[1725311135895,0.402333,59347.0,59346.0,0.011965]
[1725311136414,0.134792,59351.0,59346.0,0.011965]
[1725311136630,0.696104,59350.0,59346.0,0.008965]
[1725311136844,0.487947,59349.0,59346.0,0.008965]
[1725311137059,0.392362,59349.0,59346.0,0.008965]
[1725311137264,0.173841,59348.0,59346.0,0.008965]
[1725311137484,0.269563,59356.0,59346.0,0.008965]
[1725311137485,0.269537,59361.0,59347.0,0.2809]
[1725311137725,0.409169,59360.0,59348.0,0.134797]
[1725311137958,0.271801,59359.0,59348.0,0.134797]
[1725311138180,0.1,59358.0,59348.0,0.134797]
[1725311138397,0.364376,59358.0,59348.0,0.134797]
[1725311138613,0.15142,59357.0,59351.0,0.007]
[1725311138830,0.269529,59363.0,59351.0,0.007]
[1725311139073,0.151949,59362.0,59351.0,0.007]
[1725311139296,0.468309,59361.0,59351.0,0.007]
[1725311139553,0.571928,59360.0,59348.0,0.01]
[1725311139774,0.134781,59356.0,59348.0,0.017]
[1725311140011,0.481088,59355.0,59348.0,0.01]
[1725311140246,0.250588,59355.0,59348.0,0.017]
[1725311140468,0.0269524,59363.0,59351.0,0.134791]
[1725311140676,0.256069,59362.0,59350.0,0.276585]
[1725311140916,0.1,59363.0,59353.0,0.134786]
[1725311141169,0.105172,59362.0,59351.0,0.007]
[1725311141410,0.1,59363.0,59356.0,0.006]
[1725311141626,0.1,59367.0,59359.0,0.134772]
[1725311141905,0.1,59367.0,59356.0,0.006]
[1725311141906,0.1,59367.0,59360.0,0.1566]
[1725311142131,0.117495,59366.0,59360.0,0.1566]
[1725311142367,0.117495,59366.0,59356.0,0.1626]
[1725311142368,0.13476,59365.0,59356.0,0.1626]
[1725311142596,0.234059,59364.0,59356.0,0.1626]
[1725311142828,0.13476,59365.0,59357.0,0.01261528]
[1725311143056,0.501542,59364.0,59357.0,0.01261528]
[1725311143284,0.440523,59363.0,59357.0,0.01261528]
[1725311143523,0.001,59363.0,59357.0,0.01261528]
[1725311143757,0.564334,59362.0,59357.0,0.01261528]
[1725311143983,0.465528,59362.0,59357.0,0.01261528]
[1725311144345,0.2445,59361.0,59357.0,0.01261528]
[1725311144690,0.25504,59360.0,59357.0,0.01261528]
[1725311144903,0.135764,59363.0,59357.0,0.01261528]
[1725311145113,0.49281,59362.0,59357.0,0.01261528]
[1725311146028,0.49251,59361.0,59357.0,0.01261528]
[1725311146254,0.02642923,59374.0,59371.0,0.134744]
[1725311146502,0.02642923,59374.0,59368.0,0.006]
[1725311146503,0.1296,59392.0,59369.0,0.1671]
[1725311146727,0.64768012,59387.0,59372.0,0.01255256]
[1725311146966,0.269442,59382.0,59370.0,0.01256092]
[1725311147190,0.45366,59381.0,59373.0,0.01254838]
[1725311147407,0.269442,59382.0,59369.0,0.1671]
[1725311147408,0.347011,59380.0,59371.0,0.01255674]
[1725311147651,0.49424,59379.0,59372.0,0.01255256]
[1725311147886,0.134741,59373.0,59372.0,0.01255256]
[1725311148122,0.134745,59372.0,59364.0,0.1621]
[1725311148340,1.053293,59373.0,59364.0,0.1621]
[1725311148341,0.269486,59373.0,59364.0,0.1621]
[1725311148558,0.269486,59373.0,59354.0,0.269568]
[1725311148559,0.134757,59366.0,59365.0,0.01822274]
[1725311148786,0.503836,59366.0,59365.0,0.01822274]
[1725311149007,0.430162,59366.0,59357.0,0.80540786]
[1725311149232,0.02642824,59366.0,59365.0,0.134759]
[1725311149474,0.02642824,59366.0,59365.0,0.33029699]
[1725311149735,0.02642824,59366.0,59365.0,0.31822274]
[1725311149967,0.02642824,59366.0,59365.0,0.32429698]
[1725311150192,0.02642824,59366.0,59365.0,0.33129698]
[1725311150419,0.02742824,59366.0,59365.0,0.32522274]
[1725311151547,0.02742824,59366.0,59365.0,0.32022274]
[1725311152294,0.02742824,59366.0,59365.0,0.32629698]
[1725311152514,0.02742824,59366.0,59365.0,0.32022274]
[1725311153129,0.02742824,59366.0,59365.0,0.32629698]
[1725311154228,0.02742824,59366.0,59365.0,0.32022274]
[1725311154474,0.02742824,59366.0,59365.0,0.02522274]
[1725311154896,0.38778624,59366.0,59365.0,0.02522274]
[1725311155101,0.02742824,59366.0,59365.0,0.02522274]
[1725311155335,0.43095124,59366.0,59365.0,0.02522274]
[1725311155541,0.43095124,59366.0,59351.0,0.1325]
[1725311155754,2.497482,59365.0,59351.0,0.1325]
[1725311155964,0.134782,59355.0,59351.0,0.1325]
[1725311156178,0.238187,59354.0,59351.0,0.1325]
[1725311156392,2.823342,59363.0,59351.0,0.1325]
[1725311156610,0.1,59365.0,59349.0,0.1663]
[1725311156611,0.269559,59357.0,59349.0,0.1663]
[1725311156820,0.02643282,59354.0,59349.0,0.1663]
[1725311157033,0.74028,59353.0,59348.0,0.0008965]
[1725311157280,0.134792,59351.0,59348.0,0.0008965]
[1725311157565,0.403552,59350.0,59348.0,0.0008965]
[1725311157784,0.403552,59350.0,59349.0,0.01785039]
[1725311158008,0.696216,59352.0,59349.0,0.01785039]
[1725311158217,0.493827,59351.0,59349.0,0.01785039]
[1725311158463,0.134793,59350.0,59349.0,0.01785039]
[1725311158672,0.673967,59350.0,59349.0,0.01785039]
[1725311158885,0.673967,59350.0,59348.0,0.0008965]
[1725311158886,0.673977,59349.0,59348.0,0.0008965]
[1725311159113,0.745604,59349.0,59348.0,0.0008965]
[1725311159305,1.015195,59349.0,59348.0,0.0008965]
[1725311159524,0.745604,59349.0,59348.0,0.0008965]
[1725311160078,0.84976541,59349.0,59348.0,0.0008965]
[1725311160279,0.85076541,59349.0,59348.0,0.0008965]
[1725311160602,0.746604,59349.0,59348.0,0.0008965]
[1725311160801,1.016195,59349.0,59348.0,0.0008965]
[1725311160997,0.746604,59349.0,59348.0,0.0008965]
[1725311161421,0.217111,59349.0,59348.0,0.0008965]
[1725311161583,0.337258,59349.0,59348.0,0.0008965]
[1725311161786,0.202463,59349.0,59348.0,0.0008965]
[1725311161985,0.001,59349.0,59348.0,0.0008965]
[1725311162215,0.001,59349.0,59348.0,0.01921593]
[1725311162672,0.135795,59349.0,59348.0,0.01921593]
[1725311162879,0.17510975,59349.0,59348.0,0.01921593]
[1725311163095,0.44470075,59349.0,59348.0,0.0008965]
[1725311163372,1.06720875,59349.0,59348.0,0.0008965]
[1725311163572,1.935935,59349.0,59348.0,0.0008965]
[1725311163803,1.795935,59349.0,59348.0,0.0008965]
[1725311164064,0.269641,59338.0,59337.0,0.0008976]
[1725311164274,1.064765,59338.0,59337.0,0.0008976]
[1725311164526,0.829658,59338.0,59337.0,0.0008976]
[1725311164727,1.099299,59338.0,59337.0,0.0008976]
[1725311164941,1.39537934,59338.0,59337.0,0.0008976]
[1725311165410,1.39537934,59338.0,59326.0,0.50540786]
[1725311165411,0.99091834,59338.0,59326.0,0.50540786]
[1725311165651,0.99091834,59338.0,59325.0,0.1633]
[1725311165652,0.134834,59332.0,59325.0,0.1633]
[1725311165872,0.134843,59328.0,59327.0,0.0184952]
[1725311166092,0.134843,59328.0,59326.0,0.01850358]
[1725311166093,0.404536,59327.0,59326.0,0.01850358]
[1725311166340,0.404536,59327.0,59326.0,0.006]
[1725311166341,0.1497,59327.0,59326.0,0.006]
[1725311166579,0.1247,59339.0,59321.0,0.275716]
[1725311166580,0.02644441,59328.0,59321.0,0.275716]
[1725311166791,0.1554,59327.0,59323.0,0.134854]
[1725311166996,0.1554,59327.0,59323.0,0.1305]
[1725311167517,0.1554,59327.0,59324.0,0.50540786]
[1725311167748,0.02744441,59328.0,59327.0,0.730536]
[1725311167993,0.02644441,59328.0,59327.0,1.269918]
[1725311168242,0.269564,59356.0,59347.0,0.1695]
[1725311168449,0.269564,59356.0,59337.0,0.269643]
[1725311168450,0.13481,59343.0,59337.0,0.1695]
[1725311168672,0.673303,59342.0,59337.0,0.1695]
[1725311168919,0.02643888,59350.0,59337.0,0.1695]
[1725311168920,0.134796,59349.0,59339.0,0.134817]
[1725311169134,0.172336,59349.0,59343.0,0.134807]
[1725311169332,0.172336,59349.0,59339.0,0.006]
[1725311169559,0.19221349,59349.0,59340.0,0.404445]
[1725311169782,0.547952,59348.0,59341.0,0.134813]
[1725311169991,0.825199,59347.0,59341.0,0.134813]
[1725311170196,0.1471,59346.0,59340.0,0.26963]
[1725311170407,0.02643888,59350.0,59340.0,0.134815]
[1725311170612,0.02643888,59350.0,59337.0,0.439142]
[1725311170613,0.13481,59343.0,59337.0,0.1695]
[1725311171041,0.134806,59345.0,59337.0,0.1695]
[1725311171261,0.835711,59344.0,59337.0,0.1695]
[1725311171482,0.786202,59343.0,59337.0,0.1695]
[1725311171710,0.134809,59343.0,59337.0,0.1695]
[1725311171926,0.134809,59343.0,59336.0,0.1305]
[1725311171927,0.134819,59339.0,59336.0,0.1305]
[1725311172145,0.693087,59338.0,59334.0,0.04930397]
[1725311172397,0.477384,59337.0,59336.0,0.04930397]
[1725311172604,0.269641,59339.0,59335.0,0.04930397]
[1725311172858,2.0616326,59345.0,59336.0,0.01930319]
[1725311172859,0.889465,59338.0,59336.0,0.01930319]
[1725311173069,0.2924,59337.0,59336.0,0.01930319]
[1725311173289,0.2924,59337.0,59334.0,0.04930397]
[1725311173290,0.2798,59337.0,59334.0,0.04930397]
[1725311173524,0.134816,59340.0,59336.0,0.01930319]
[1725311173733,0.001,59337.0,59336.0,0.007]
[1725311173957,0.33798,59337.0,59336.0,0.05630397]
[1725311174164,0.43684,59337.0,59336.0,0.05630397]
[1725311174374,0.43684,59337.0,59336.0,0.007]
[1725311174375,0.506592,59337.0,59336.0,0.007]
[1725311174575,0.232648,59337.0,59336.0,0.007]
[1725311175275,0.232648,59337.0,59334.0,0.04930397]
[1725311175276,0.134827,59335.0,59334.0,0.04930397]
[1725311175512,1.930693,59335.0,59330.0,0.04930397]
[1725311175709,0.269665,59333.0,59328.0,0.04930397]
[1725311175969,0.13484,59330.0,59328.0,0.04930397]
[1725311176174,0.13484,59330.0,59322.0,0.26811493]
[1725311176175,0.134863,59320.0,59314.0,0.22115421]
[1725311176377,0.65309,59319.0,59314.0,0.171776]
[1725311176604,0.65309,59319.0,59314.0,0.008976]
[1725311176605,0.787954,59319.0,59314.0,0.008976]
[1725311176833,0.732879,59318.0,59314.0,0.008976]
[1725311177084,0.513753,59317.0,59314.0,0.008976]
[1725311177286,0.134869,59317.0,59314.0,0.008976]
[1725311177490,0.818404,59318.0,59314.0,0.008976]
[1725311177491,0.491797,59316.0,59314.0,0.008976]
[1725311177909,0.756051,59316.0,59314.0,0.008976]
[1725311178336,0.404619,59315.0,59314.0,0.008976]
[1725311178537,2.049627,59315.0,59314.0,0.008976]
[1725311178762,0.404659,59309.0,59308.0,0.008976]
[1725311178975,0.134886,59309.0,59308.0,0.008976]
[1725311179403,0.134895,59305.0,59292.0,0.1553]
[1725311179609,0.134914,59297.0,59292.0,0.66070786]
[1725311179811,0.134915,59297.0,59293.0,0.02013606]
[1725311180047,0.134916,59296.0,59293.0,0.02013606]
[1725311180258,0.1,59302.0,59291.0,0.009365]
[1725311180516,0.1,59302.0,59294.0,0.02012767]
[1725311180517,3.4647491,59301.0,59294.0,0.02012767]
[1725311180733,0.134912,59298.0,59292.0,0.02014444]
[1725311180976,0.134925,59292.0,59291.0,0.009365]
[1725311181205,1.469488,59292.0,59291.0,0.009365]
[1725311181646,1.739338,59292.0,59291.0,0.009365]
[1725311182056,0.638536,59292.0,59291.0,0.009365]
[1725311182459,0.638536,59292.0,59288.0,0.0008965]
[1725311182460,0.13493,59290.0,59288.0,0.0008965]
[1725311182730,0.959029,59290.0,59288.0,0.0008965]
[1725311182951,1.712362,59290.0,59288.0,0.0008965]
[1725311183177,1.859482,59290.0,59288.0,0.0008965]
[1725311183622,0.569296,59289.0,59288.0,0.0008965]
[1725311183841,0.269884,59285.0,59278.0,0.1621]
[1725311184061,0.504115,59284.0,59278.0,0.1621]
[1725311184298,0.387068,59283.0,59279.0,0.02025344]
[1725311184516,0.387068,59283.0,59278.0,0.1621]
[1725311184733,0.338416,59282.0,59280.0,0.02024505]
[1725311185000,0.13494,59286.0,59278.0,0.1621]
[1725311185001,0.293727,59281.0,59278.0,0.1621]
[1725311185211,0.134944,59284.0,59278.0,0.1621]
[1725311185424,0.738145,59283.0,59278.0,0.1621]
[1725311185656,1.095802,59284.0,59277.0,0.008976]
[1725311185857,1.35796715,59284.0,59277.0,0.008976]
[1725311186057,0.811136,59283.0,59277.0,0.008976]
[1725311186278,0.134951,59281.0,59277.0,0.008976]
[1725311186460,0.811136,59283.0,59277.0,0.008976]
[1725311186461,0.489459,59280.0,59277.0,0.008976]
[1725311186673,0.444491,59279.0,59277.0,0.008976]
[1725311186899,0.457619,59281.0,59277.0,0.008976]
[1725311187105,0.725304,59283.0,59277.0,0.008976]
[1725311187303,0.725294,59283.0,59277.0,0.008976]
[1725311187533,0.134949,59282.0,59277.0,0.008976]
[1725311187750,0.134951,59281.0,59278.0,0.02042849]
[1725311187975,1.351926,59282.0,59278.0,0.02042849]
[1725311187976,0.134955,59279.0,59278.0,0.02042849]
[1725311188197,0.65620201,59279.0,59277.0,0.008976]
[1725311188453,0.376496,59278.0,59277.0,0.008976]
[1725311188647,0.134957,59278.0,59277.0,0.008976]
[1725311188876,0.134957,59278.0,59277.0,0.02969621]
[1725311189104,1.848523,59278.0,59277.0,0.008976]
[1725311189364,2.24640518,59278.0,59277.0,0.008976]
[1725311189616,2.24640518,59278.0,59269.0,0.1665]
[1725311189617,0.134969,59273.0,59261.0,0.51711146]
[1725311189849,0.269953,59270.0,59261.0,0.51711146]
[1725311190080,0.50417415,59269.0,59264.0,0.02082927]
[1725311190315,1.05085,59268.0,59261.0,0.0117036]
[1725311190551,1.05085,59268.0,59261.0,0.2816936]
[1725311190552,0.1,59267.0,59261.0,0.2816936]
[1725311190786,0.1,59267.0,59264.0,0.02110836]
[1725311191030,0.32783942,59424.0,59268.0,0.269956]
[1725311191031,0.269885,59285.0,59268.0,0.269956]
[1725311191255,0.1,59276.0,59267.0,0.006]
[1725311191516,0.128283,59275.0,59270.0,0.134973]
[1725311191752,0.1,59276.0,59271.0,0.134972]
[1725311191975,0.1,59276.0,59271.0,0.15602064]
[1725311192189,0.1,59276.0,59272.0,0.13397]
[1725311192400,0.400257,59275.0,59271.0,0.02104964]
[1725311192610,1.013211,59279.0,59271.0,0.02104964]
[1725311192815,1.013211,59279.0,59270.0,0.134973]
[1725311192816,0.1,59278.0,59270.0,0.134973]
[1725311193020,0.748366,59277.0,59272.0,0.02104125]
[1725311193250,1.039637,59276.0,59271.0,0.02104964]
[1725311193458,0.1,59278.0,59273.0,0.02103286]
[1725311193459,0.63368,59275.0,59273.0,0.02103286]
[1725311193671,0.556877,59274.0,59272.0,0.02104125]
[1725311193902,0.22872,59273.0,59268.0,0.269959]
[1725311194131,0.1,59272.0,59267.0,0.006]
[1725311194366,0.118909,59271.0,59270.0,0.134974]
[1725311194576,0.104154,59271.0,59270.0,0.134974]
[1725311194823,0.1,59272.0,59268.0,0.269957]
[1725311195032,0.1,59272.0,59269.0,0.134976]
[1725311195278,0.1,59278.0,59269.0,0.134976]
[1725311195486,0.006,59272.0,59269.0,0.134976]
[1725311195710,0.006,59272.0,59267.0,0.006]
[1725311195711,0.512976,59271.0,59267.0,0.006]
[1725311195933,0.234958,59278.0,59269.0,0.134977]
[1725311196150,0.006,59272.0,59266.0,0.134983]
[1725311196363,0.335309,59271.0,59267.0,0.134981]
[1725311196563,0.335309,59271.0,59265.0,0.573571]
[1725311196757,0.705761,59274.0,59265.0,0.438585]
[1725311197017,0.2110653,59273.0,59265.0,0.3036]
[1725311197260,0.143602,59272.0,59266.0,0.275968]
[1725311197465,0.1,59273.0,59270.0,0.134973]
[1725311197731,0.128365,59272.0,59270.0,0.134973]
[1725311198148,0.134365,59272.0,59267.0,0.269962]
[1725311198379,0.119818,59271.0,59269.0,0.134976]
[1725311198579,0.100817,59273.0,59269.0,0.134976]
[1725311198803,0.119717,59272.0,59269.0,0.134976]
[1725311199204,0.125717,59272.0,59269.0,0.134976]
[1725311199435,0.002,59291.0,59266.0,0.006]
[1725311199672,3.91486,59425.0,59263.0,0.008954]
[1725311199673,0.269958,59269.0,59263.0,0.008954]
[1725311199918,1.559039,59268.0,59263.0,0.008954]
[1725311200136,0.134987,59265.0,59263.0,0.008954]
[1725311200383,0.269964,59267.0,59263.0,0.008954]
[1725311200384,1.588583,59264.0,59263.0,0.008954]
[1725311200606,0.508987,59264.0,59263.0,0.008954]
[1725311200814,0.191433,59264.0,59263.0,0.008954]
[1725311201229,0.63872,59267.0,59263.0,0.008954]